bitfinex-derivatives/quotes_BTCF0:USTF0_20230402
["timestamp","ask_amount","ask_price","bid_price","bid_amount"]
[1680413223957,0.3811,28438.0,28436.0,0.0704]
[1680413224754,0.1408,28437.0,28433.0,0.4205]
[1680413224954,0.0704,28434.0,28433.0,0.4205]
[1680413226158,0.0724,28434.0,28433.0,0.4245]
[1680413231856,0.0724,28434.0,28433.0,0.1238]
[1680413232160,0.0724,28434.0,28433.0,0.3745]
[1680413236960,0.002,28434.0,28433.0,0.3751]
[1680413245468,0.002,28434.0,28433.0,0.0744]
[1680413245665,0.002,28434.0,28433.0,0.3751]
[1680413249171,0.00190035,28434.0,28433.0,0.3751]
[1680413256377,0.00190035,28434.0,28433.0,0.0744]
[1680413256576,0.00190035,28434.0,28433.0,0.3751]
[1680413259477,0.07230035,28434.0,28433.0,0.3047]
[1680413259771,0.37300035,28434.0,28433.0,0.004]
[1680413263771,0.07230035,28434.0,28433.0,0.004]
[1680413263979,0.37300035,28434.0,28433.0,0.004]
[1680413266875,0.44340035,28434.0,28433.0,0.004]
[1680413276994,0.37300035,28434.0,28433.0,0.004]
[1680413279092,0.07230035,28434.0,28433.0,0.004]
[1680413294302,0.07230035,28434.0,28433.0,0.00392582]
[1680413297209,0.37300035,28434.0,28433.0,0.00392582]
[1680413310020,0.3711,28434.0,28432.0,0.0702]
[1680413310211,0.3017,28434.0,28433.0,0.015]
[1680413310413,0.3721,28434.0,28433.0,0.015]
[1680413310613,0.0714,28434.0,28433.0,0.015]
[1680413314122,0.0714,28434.0,28433.0,0.065]
[1680413314322,0.0714,28434.0,28433.0,0.015]
[1680413324630,0.1913,28434.0,28433.0,0.013]
[1680413325428,0.1413,28434.0,28433.0,0.013]
[1680413331032,0.6328,28434.0,28433.0,0.013]
[1680413331428,0.75902394,28434.0,28433.0,0.013]
[1680413332336,0.6328,28434.0,28433.0,0.013]
[1680413333830,0.75902394,28434.0,28433.0,0.013]
[1680413334334,0.6328,28434.0,28433.0,0.013]
[1680413337740,0.6368,28434.0,28428.0,0.05]
[1680413338038,0.0704,28429.0,28427.0,0.1204]
[1680413338240,0.0701,28428.0,28427.0,0.0704]
[1680413339540,0.0701,28428.0,28427.0,0.0874]
[1680413339935,0.0721,28428.0,28427.0,0.0874]
[1680413345736,0.0724,28428.0,28427.0,0.017]
[1680413376657,0.1224,28428.0,28427.0,0.01686763]
[1680413376858,0.0724,28428.0,28427.0,0.01686763]
[1680413382067,0.3731,28428.0,28427.0,0.01686763]
[1680413390577,0.3027,28428.0,28427.0,0.08726763]
[1680413390769,0.002,28428.0,28427.0,0.15716763]
[1680413390970,0.002,28428.0,28427.0,0.20716763]
[1680413393176,0.002,28428.0,28427.0,0.50786763]
[1680413396873,0.002,28428.0,28427.0,0.43796763]
[1680413397674,0.00185981,28428.0,28427.0,0.43796763]
[1680413416990,0.00185981,28428.0,28427.0,0.50836763]
[1680413431709,0.00185981,28428.0,28427.0,0.45836763]
[1680413435804,0.00185981,28428.0,28427.0,0.4415]
[1680413436011,0.002,28428.0,28427.0,0.4565]
[1680413438312,0.05,28431.0,28427.0,0.4565]
[1680413438514,0.002,28428.0,28427.0,0.3861]
[1680413438714,0.002,28428.0,28427.0,0.4565]
[1680413442219,0.002,28428.0,28427.0,0.45634834]
[1680413446021,0.002,28428.0,28427.0,0.15564834]
[1680413446222,0.002,28428.0,28427.0,0.45634834]
[1680413446812,0.002,28428.0,28427.0,0.38594834]
[1680413453722,0.002,28428.0,28427.0,0.08524834]
[1680413454027,0.002,28428.0,28427.0,0.38594834]
[1680413456328,0.002,28428.0,28427.0,0.08524834]
[1680413456522,0.002,28428.0,28427.0,0.38594834]
[1680413461619,0.0724,28428.0,28427.0,0.3856]
[1680413461818,0.0724,28428.0,28427.0,0.0849]
[1680413466835,0.002,28428.0,28427.0,0.0854]
[1680413476236,0.002,28428.0,28427.0,0.5269]
[1680413476442,0.12622394,28434.0,28428.0,0.191]
[1680413476633,0.12622394,28434.0,28429.0,0.05]
[1680413477934,0.13722394,28434.0,28429.0,0.05]
[1680413478637,0.13722394,28434.0,28429.0,0.051]
[1680413479037,0.001,28434.0,28429.0,0.065]
[1680413479239,0.051,28434.0,28429.0,0.065]
[1680413479437,0.001,28434.0,28429.0,0.065]
[1680413481045,0.001,28434.0,28433.0,0.0702]
[1680413482045,0.001,28434.0,28433.0,0.0852]
[1680413482246,0.051,28434.0,28433.0,0.0852]
[1680413482446,0.001,28434.0,28433.0,0.0852]
[1680413496559,0.3017,28434.0,28433.0,0.0852]
[1680413499562,0.001,28434.0,28433.0,0.0852]
[1680413499763,0.3017,28434.0,28433.0,0.0852]
[1680413501757,0.001,28434.0,28433.0,0.0852]
[1680413501966,0.3017,28434.0,28433.0,0.0852]
[1680413506166,0.001,28434.0,28433.0,0.0852]
[1680413506366,0.3017,28434.0,28433.0,0.0852]
[1680413506867,0.3721,28434.0,28433.0,0.0854]
[1680413518774,0.0714,28434.0,28433.0,0.0854]
[1680413522178,0.19762394,28434.0,28433.0,0.0854]
[1680413524481,0.0714,28434.0,28433.0,0.0854]
[1680413536497,0.0709,28434.0,28433.0,0.0849]
[1680413541589,0.001,28434.0,28433.0,0.1555]
[1680413555399,0.001,28434.0,28433.0,0.2055]
[1680413555708,0.001,28434.0,28433.0,0.1555]
[1680413559513,0.001,28434.0,28433.0,0.2055]
[1680413560511,0.001,28434.0,28433.0,0.647]
[1680413560716,0.12622394,28439.0,28434.0,0.05]
[1680413560911,0.12622394,28439.0,28438.0,0.0699]
[1680413561107,0.12622394,28439.0,28438.0,0.1199]
[1680413561303,0.19632394,28440.0,28438.0,0.1199]
[1680413561514,0.19632394,28440.0,28439.0,0.0701]
[1680413562214,0.21432394,28440.0,28439.0,0.0701]
[1680413562817,0.21432394,28440.0,28439.0,0.0721]
[1680413563410,0.018,28440.0,28439.0,0.1425]
[1680413566814,0.018,28440.0,28439.0,0.0721]
[1680413570814,0.018,28440.0,28439.0,0.1422]
[1680413571322,0.018,28440.0,28439.0,0.4429]
[1680413576817,0.018,28440.0,28439.0,0.5831]
[1680413578824,0.018,28440.0,28439.0,0.2824]
[1680413579026,0.018,28440.0,28439.0,0.5831]
[1680413585721,0.3007,28445.0,28440.0,0.05]
[1680413585926,0.3007,28445.0,28444.0,0.0704]
[1680413587221,0.3037,28445.0,28444.0,0.0704]
[1680413587625,0.3037,28445.0,28444.0,0.0724]
[1680413588125,0.003,28445.0,28444.0,0.0724]
[1680413618553,0.12922394,28445.0,28444.0,0.0724]
[1680413619552,0.003,28445.0,28444.0,0.0724]
[1680413622146,0.003,28445.0,28444.0,0.1224]
[1680413623451,0.12922394,28445.0,28444.0,0.1224]
[1680413623655,0.12922394,28445.0,28444.0,0.0724]
[1680413623849,0.003,28445.0,28444.0,0.0724]
[1680413624050,0.12922394,28445.0,28444.0,0.0724]
[1680413624654,0.003,28445.0,28444.0,0.0724]
[1680413625355,0.12922394,28445.0,28444.0,0.0724]
[1680413630157,0.003,28445.0,28444.0,0.5844]
[1680413630454,0.12622394,28448.0,28445.0,0.05]
[1680413630655,0.12622394,28449.0,28447.0,0.1401]
[1680413630854,0.12622394,28449.0,28448.0,0.1199]
[1680413631053,0.12622394,28449.0,28448.0,0.0699]
[1680413631454,0.12622394,28450.0,28448.0,0.1199]
[1680413631657,0.12622394,28452.0,28449.0,0.0704]
[1680413631959,0.12622394,28452.0,28451.0,0.0701]
[1680413632662,0.19632394,28453.0,28451.0,0.0701]
[1680413633749,0.19632394,28453.0,28451.0,0.0721]
[1680413634663,0.49702394,28453.0,28451.0,0.0721]
[1680413636462,0.3708,28453.0,28451.0,0.0721]
[1680413644359,0.421,28452.0,28451.0,0.002]
[1680413647063,0.4914,28452.0,28451.0,0.002]
[1680413647266,0.7921,28452.0,28451.0,0.002]
[1680413653172,0.7421,28452.0,28451.0,0.002]
[1680413655270,0.05,28451.0,28446.0,0.0704]
[1680413655468,0.3007,28447.0,28446.0,0.0704]
[1680413656770,0.3708,28447.0,28446.0,0.0719]
[1680413656974,0.3007,28447.0,28446.0,0.0721]
[1680413657171,0.0699,28449.0,28446.0,0.1221]
[1680413657369,0.002,28447.0,28446.0,0.052]
[1680413657671,0.002,28447.0,28446.0,0.1221]
[1680413661477,0.002,28447.0,28446.0,0.0721]
[1680413664272,0.002,28447.0,28446.0,0.002]
[1680413664480,0.05,28446.0,28444.0,0.0704]
[1680413664780,0.0702,28445.0,28444.0,0.0704]
[1680413665977,0.0752,28445.0,28444.0,0.0724]
[1680413666881,0.005,28445.0,28444.0,0.0724]
[1680413672691,0.005,28445.0,28444.0,0.1224]
[1680413676892,0.005,28445.0,28444.0,0.4231]
[1680413677500,0.005,28445.0,28444.0,0.1224]
[1680413677792,0.005,28445.0,28444.0,0.4231]
[1680413691900,0.005,28445.0,28444.0,0.1224]
[1680413692999,0.005,28445.0,28444.0,0.0724]
[1680413693204,0.0754,28445.0,28444.0,0.002]
[1680413696906,0.005,28445.0,28444.0,0.0724]
[1680413703320,0.005,28445.0,28444.0,0.1224]
[1680413708622,0.005,28445.0,28444.0,0.0724]
[1680413710323,0.005,28445.0,28444.0,0.1224]
[1680413711027,0.005,28445.0,28444.0,0.0724]
[1680413711325,0.005,28445.0,28444.0,0.1224]
[1680413712025,0.005,28445.0,28444.0,0.12224591]
[1680413718132,0.005,28445.0,28444.0,0.07224591]
[1680413721529,0.12622394,28449.0,28445.0,0.1958]
[1680413721835,0.126496,28452.0,28448.0,0.5825]
[1680413722029,0.126496,28452.0,28449.0,0.05]
[1680413722438,0.126496,28452.0,28451.0,0.3007]
[1680413722631,0.126496,28453.0,28451.0,0.4412]
[1680413722839,0.126496,28453.0,28452.0,0.1204]
[1680413723633,0.126496,28454.0,28452.0,0.1204]
[1680413723833,0.126496,28453.0,28451.0,0.3007]
[1680413724034,0.126496,28453.0,28452.0,0.0701]
[1680413724233,0.126496,28453.0,28452.0,0.1201]
[1680413724639,0.126496,28454.0,28452.0,0.1221]
[1680413724841,0.126496,28454.0,28453.0,0.0698]
[1680413726737,0.126496,28454.0,28453.0,0.0718]
[1680413728737,0.427196,28455.0,28453.0,0.0718]
[1680413728940,0.196696,28456.0,28454.0,0.0701]
[1680413729246,0.196696,28456.0,28455.0,0.1204]
[1680413729739,0.196696,28456.0,28455.0,0.0704]
[1680413730846,0.196696,28456.0,28455.0,0.0724]
[1680413734648,0.0702,28456.0,28455.0,0.0724]
[1680413736052,0.196396,28456.0,28455.0,0.002]
[1680413736251,0.246396,28456.0,28455.0,0.002]
[1680413736852,0.1199,28456.0,28455.0,0.002]
[1680413737351,0.246396,28456.0,28455.0,0.002]
[1680413737744,0.1199,28456.0,28455.0,0.002]
[1680413738949,0.0699,28456.0,28455.0,0.002]
[1680413744158,0.1199,28456.0,28455.0,0.002]
[1680413745659,0.0699,28456.0,28455.0,0.002]
[1680413747763,0.3706,28456.0,28455.0,0.002]
[1680413750061,0.0699,28456.0,28455.0,0.002]
[1680413750265,0.3706,28456.0,28455.0,0.002]
[1680413750557,0.196396,28458.0,28455.0,0.0719]
[1680413750759,0.497096,28458.0,28457.0,0.0701]
[1680413752465,0.497096,28458.0,28457.0,0.0721]
[1680413753358,0.497496,28458.0,28457.0,0.002]
[1680413753867,0.427196,28458.0,28457.0,0.002]
[1680413754065,0.427196,28458.0,28457.0,0.0721]
[1680413754559,0.497296,28458.0,28457.0,0.002]
[1680413756960,0.567696,28458.0,28457.0,0.002]
[1680413758567,0.4412,28458.0,28457.0,0.002]
[1680413759669,0.56740495,28458.0,28457.0,0.002]
[1680413760567,0.4412,28458.0,28457.0,0.002]
[1680413762570,0.60949859,28458.0,28457.0,0.002]
[1680413766574,0.4412,28458.0,28457.0,0.002]
[1680413766982,0.3711,28458.0,28457.0,0.002]
[1680413767971,0.4211,28458.0,28457.0,0.00185167]
[1680413768372,0.3711,28458.0,28457.0,0.00185167]
[1680413768675,0.4211,28458.0,28457.0,0.00185167]
[1680413769277,0.3711,28458.0,28457.0,0.00185167]
[1680413771174,0.4211,28458.0,28457.0,0.00185167]
[1680413771373,0.3711,28458.0,28457.0,0.00185167]
[1680413772475,0.4211,28458.0,28457.0,0.00185167]
[1680413772678,0.3711,28458.0,28457.0,0.00185167]
[1680413773381,0.4211,28458.0,28457.0,0.00185167]
[1680413773584,0.3711,28458.0,28457.0,0.00185167]
[1680413773979,0.4211,28458.0,28457.0,0.00185167]
[1680413775384,0.53965571,28458.0,28457.0,0.07225167]
[1680413776882,0.53935571,28458.0,28457.0,0.00185167]
[1680413779888,0.53914119,28458.0,28457.0,0.00185167]
[1680413783188,0.53912917,28458.0,28457.0,0.00185167]
[1680413787198,0.53912917,28458.0,28457.0,0.002]
[1680413788498,0.23894369,28460.0,28457.0,0.1221]
[1680413788702,0.3007,28461.0,28459.0,0.1402]
[1680413788903,0.3007,28461.0,28460.0,0.0704]
[1680413789106,0.3007,28461.0,28460.0,0.1204]
[1680413789407,0.12640063,28464.0,28460.0,0.4908]
[1680413789703,0.12640063,28465.0,28463.0,0.0699]
[1680413789902,0.12640063,28465.0,28464.0,0.1201]
[1680413790403,0.61790063,28465.0,28461.0,0.0701]
[1680413790605,0.0699,28463.0,28461.0,0.0701]
[1680413790794,0.05,28462.0,28461.0,0.0699]
[1680413791195,0.07,28463.0,28461.0,0.0699]
[1680413792396,0.07,28463.0,28461.0,0.0719]
[1680413792800,0.07,28463.0,28461.0,0.0699]
[1680413793000,0.07,28463.0,28461.0,0.0719]
[1680413793896,0.3007,28462.0,28461.0,0.0719]
[1680413797007,0.3007,28462.0,28461.0,0.0724]
[1680413804210,0.3711,28462.0,28461.0,0.002]
[1680413806210,0.4211,28462.0,28461.0,0.002]
[1680413806510,0.3711,28462.0,28461.0,0.002]
[1680413806911,0.3711,28462.0,28461.0,0.0724]
[1680413807114,0.4211,28462.0,28461.0,0.0724]
[1680413807414,0.3711,28462.0,28461.0,0.0724]
[1680413808914,0.4211,28462.0,28461.0,0.0724]
[1680413809110,0.3711,28462.0,28461.0,0.0724]
[1680413809310,0.4211,28462.0,28461.0,0.0724]
[1680413810015,0.3711,28462.0,28461.0,0.0724]
[1680413811714,0.4211,28462.0,28461.0,0.0724]
[1680413811915,0.3711,28462.0,28461.0,0.0724]
[1680413812620,0.3709,28462.0,28461.0,0.002]
[1680413818518,0.4209,28462.0,28461.0,0.002]
[1680413818717,0.3709,28462.0,28461.0,0.002]
[1680413819320,0.4413,28462.0,28461.0,0.002]
[1680413819510,0.05,28461.0,28457.0,0.0701]
[1680413819712,0.3707,28458.0,28457.0,0.0701]
[1680413821911,0.3717,28458.0,28457.0,0.0721]
[1680413826415,0.3017,28458.0,28457.0,0.0721]
[1680413826614,0.001,28458.0,28457.0,0.1221]
[1680413828517,0.001,28458.0,28457.0,0.0721]
[1680413830920,0.001,28458.0,28457.0,0.192]
[1680413831221,0.0703,28462.0,28458.0,0.05]
[1680413831424,0.0703,28462.0,28461.0,0.0699]
[1680413832425,0.19670063,28462.0,28461.0,0.0719]
[1680413836823,0.12640063,28462.0,28461.0,0.0721]
[1680413842330,0.19680063,28463.0,28461.0,0.0721]
[1680413842735,0.12640063,28462.0,28461.0,0.0721]
[1680413842934,0.24680063,28463.0,28461.0,0.0721]
[1680413843137,0.19680063,28463.0,28461.0,0.0721]
[1680413843727,0.19670063,28463.0,28462.0,0.0699]
[1680413844430,0.0703,28463.0,28462.0,0.0699]
[1680413844837,0.19666327,28463.0,28462.0,0.0699]
[1680413845035,0.0703,28463.0,28462.0,0.0699]
[1680413845236,0.19666052,28463.0,28462.0,0.0699]
[1680413845543,0.19666052,28463.0,28462.0,0.0719]
[1680413846843,0.12636052,28463.0,28462.0,0.0724]
[1680413847043,0.17636052,28463.0,28462.0,0.0724]
[1680413847247,0.24656052,28463.0,28462.0,0.002]
[1680413847434,0.1202,28463.0,28462.0,0.002]
[1680413848157,0.4209,28463.0,28456.0,0.5118]
[1680413848354,0.3007,28460.0,28457.0,0.05]
[1680413848650,0.3007,28460.0,28459.0,0.0699]
[1680413849247,0.3707,28460.0,28458.0,0.0701]
[1680413849453,0.0702,28459.0,28458.0,0.0701]
[1680413850955,0.0719,28459.0,28458.0,0.002]
[1680413851157,0.1219,28459.0,28458.0,0.052]
[1680413851363,0.0719,28459.0,28458.0,0.002]
[1680413851756,0.0719,28459.0,28458.0,0.052]
[1680413851957,0.0719,28459.0,28458.0,0.002]
[1680413856860,0.072,28459.0,28458.0,0.002]
[1680413858659,0.05,28458.0,28455.0,0.0704]
[1680413858858,0.3706,28456.0,28455.0,0.0704]
[1680413859965,0.3746,28456.0,28455.0,0.0724]
[1680413866959,0.3748,28456.0,28455.0,0.0724]
[1680413869173,0.0741,28456.0,28455.0,0.0724]
[1680413869472,0.3748,28456.0,28455.0,0.0724]
[1680413876878,0.3751,28456.0,28455.0,0.0724]
[1680413877080,0.375,28456.0,28455.0,0.0722]
[1680413886979,0.3747,28456.0,28455.0,0.0721]
[1680413894578,0.4448,28456.0,28449.0,0.0702]
[1680413894779,0.3007,28451.0,28450.0,0.05]
[1680413894979,0.3707,28451.0,28450.0,0.05]
[1680413895181,0.3707,28451.0,28449.0,0.0702]
[1680413895387,0.0699,28450.0,28449.0,0.0702]
[1680413896689,0.0699,28450.0,28449.0,0.0742]
[1680413904794,0.0699,28450.0,28446.0,0.0701]
[1680413904795,0.1201,28450.0,28446.0,0.0701]
[1680413904994,0.3007,28447.0,28446.0,0.0701]
[1680413906491,0.3007,28447.0,28446.0,0.0731]
[1680413909086,0.3706,28447.0,28446.0,0.003]
[1680413910293,0.3706,28447.0,28444.0,0.0701]
[1680413910597,0.0704,28445.0,28444.0,0.0701]
[1680413912095,0.0704,28445.0,28444.0,0.0711]
[1680413912600,0.0734,28445.0,28444.0,0.0701]
[1680413919997,0.003,28445.0,28444.0,0.0701]
[1680413921597,0.371,28447.0,28444.0,0.0701]
[1680413921800,0.003,28445.0,28443.0,0.05]
[1680413922001,0.371,28447.0,28444.0,0.0702]
[1680413922204,0.371,28447.0,28446.0,0.0704]
[1680413923804,0.38,28447.0,28446.0,0.0714]
[1680413926913,0.3097,28447.0,28446.0,0.0714]
[1680413936418,0.3798,28447.0,28446.0,0.0711]
[1680413941128,0.3097,28447.0,28446.0,0.0714]
[1680413946222,0.4297,28447.0,28443.0,0.0704]
[1680413946425,0.3709,28444.0,28443.0,0.0704]
[1680413946923,0.3709,28444.0,28441.0,0.05]
[1680413946924,0.371,28444.0,28441.0,0.0702]
[1680413947122,0.0702,28443.0,28441.0,0.0702]
[1680413948527,0.0712,28443.0,28441.0,0.0862]
[1680413948921,0.0702,28443.0,28441.0,0.0702]
[1680413949123,0.0732,28443.0,28441.0,0.0702]
[1680413955130,0.3007,28442.0,28441.0,0.0702]
[1680413956622,0.3007,28442.0,28441.0,0.0732]
[1680413976840,0.3711,28442.0,28441.0,0.0734]
[1680413985944,0.4970584,28447.0,28441.0,0.1433]
[1680413986142,0.4970584,28447.0,28446.0,0.0702]
[1680413987051,0.4970584,28447.0,28445.0,0.0704]
[1680413987250,0.07,28446.0,28445.0,0.0704]
[1680413987549,0.12,28446.0,28445.0,0.0704]
[1680413987849,0.07,28446.0,28445.0,0.0704]
[1680413988949,0.08,28446.0,28445.0,0.0724]
[1680413991356,0.2063584,28446.0,28445.0,0.0724]
[1680413996351,0.2563584,28446.0,28445.0,0.0722431]
[1680413996557,0.3267584,28446.0,28445.0,0.002]
[1680413999354,0.2004,28446.0,28445.0,0.002]
[1680414001264,0.1302,28446.0,28445.0,0.002]
[1680414006762,0.0802,28446.0,28445.0,0.002]
[1680414006961,0.27711673,28446.0,28445.0,0.002]
[1680414009072,0.1506,28446.0,28445.0,0.002]
[1680414009765,0.27711621,28446.0,28445.0,0.002]
[1680414014373,0.20681621,28446.0,28445.0,0.0724]
[1680414015179,0.0803,28446.0,28445.0,0.0724]
[1680414015481,0.01,28446.0,28445.0,0.1426]
[1680414017468,0.01,28446.0,28445.0,0.0722]
[1680414018573,0.01,28446.0,28445.0,0.072]
[1680414021471,0.00989129,28446.0,28445.0,0.072]
[1680414033974,0.00989129,28446.0,28445.0,0.0512]
[1680414036380,0.05909129,28446.0,28445.0,0.002]
[1680414036684,0.10909129,28446.0,28445.0,0.002]
[1680414037775,0.05909129,28446.0,28445.0,0.002]
[1680414037990,0.10909129,28446.0,28445.0,0.002]
[1680414038379,0.05909129,28446.0,28445.0,0.002]
[1680414041488,0.00989129,28446.0,28445.0,0.1]
[1680414046900,0.00989129,28446.0,28445.0,0.0508]
[1680414057484,0.00989129,28446.0,28445.0,0.1]
[1680414064906,0.00989129,28446.0,28445.0,0.4992]
[1680414065207,0.00989129,28446.0,28445.0,0.5976]
[1680414066801,0.00989129,28446.0,28445.0,0.59744124]
[1680414072007,0.00989129,28446.0,28445.0,0.49884124]
[1680414079407,0.00989129,28446.0,28445.0,0.19814124]
[1680414086823,0.00989129,28446.0,28445.0,0.09964124]
[1680414087809,0.00989129,28446.0,28445.0,0.19804124]
[1680414088931,0.00989129,28446.0,28445.0,0.49874124]
[1680414089230,0.44491621,28452.0,28445.0,0.59714124]
[1680414089410,0.3184,28452.0,28451.0,0.0492]
[1680414089614,0.12651621,28453.0,28451.0,0.0492]
[1680414089813,0.12651621,28453.0,28452.0,0.0491]
[1680414090423,0.12751621,28453.0,28452.0,0.0491]
[1680414091008,0.001,28453.0,28452.0,0.0491]
[1680414091636,0.001,28453.0,28452.0,0.0511]
[1680414094726,0.051,28453.0,28452.0,0.0501]
[1680414095026,0.001,28453.0,28452.0,0.0501]
[1680414103531,0.001,28453.0,28452.0,0.0992]
[1680414103725,0.001,28453.0,28452.0,0.1976]
[1680414103919,0.001,28453.0,28452.0,0.248]
[1680414104519,0.001,28453.0,28452.0,0.5487]
[1680414104935,1.2677927,28465.0,28460.0,0.55]
[1680414105128,1.78554042,28471.0,28460.0,0.55]
[1680414105129,0.16836797,28468.0,28464.0,0.8959]
[1680414105331,0.16836797,28468.0,28467.0,0.3007]
[1680414105541,0.3255,28476.0,28467.0,0.4974]
[1680414105743,0.3255,28476.0,28474.0,0.3007]
[1680414105928,0.3007,28479.0,28475.0,0.0492]
[1680414106132,0.4492,28478.0,28476.0,0.0492]
[1680414106325,0.05,28477.0,28476.0,0.0122165]
[1680414107327,0.05,28477.0,28476.0,0.0613165]
[1680414107534,0.4,28478.0,28476.0,0.0633165]
[1680414107731,0.4,28478.0,28477.0,0.0492]
[1680414108127,0.05,28480.0,28477.0,0.0492]
[1680414108327,0.05,28480.0,28479.0,0.0492]
[1680414108729,0.04985079,28480.0,28479.0,0.0492]
[1680414110430,0.04985079,28480.0,28479.0,0.05277701]
[1680414111937,0.04985079,28480.0,28479.0,0.00357701]
[1680414111938,0.39925079,28480.0,28479.0,0.00357701]
[1680414112236,0.39925079,28480.0,28479.0,0.002]
[1680414112440,0.35055079,28480.0,28479.0,0.002]
[1680414112734,0.41165079,28480.0,28479.0,0.002]
[1680414116842,0.35055079,28480.0,28479.0,0.002]
[1680414118342,0.41205079,28480.0,28479.0,0.002]
[1680414129745,0.052,28479.0,28472.0,0.0615]
[1680414129949,0.0611,28473.0,28470.0,0.05]
[1680414130137,0.05,28472.0,28469.0,0.3617]
[1680414130941,0.052,28472.0,28469.0,0.3637]
[1680414132449,0.052,28472.0,28469.0,0.3905]
[1680414132649,0.3527,28472.0,28469.0,0.3905]
[1680414133144,0.3527,28472.0,28469.0,0.0898]
[1680414134147,0.3027,28472.0,28469.0,0.0898]
[1680414138148,0.05,28471.0,28469.0,0.0898]
[1680414139147,0.052,28471.0,28469.0,0.0898]
[1680414140055,0.0878,28470.0,28469.0,0.002]
[1680414141355,0.0878,28470.0,28463.0,0.3884]
[1680414141555,0.0878,28467.0,28463.0,0.3884]
[1680414141749,0.05,28466.0,28463.0,0.3884]
[1680414142349,0.0878,28467.0,28463.0,0.3884]
[1680414142549,0.004,28466.0,28463.0,0.3894]
[1680414142762,0.054,28466.0,28463.0,0.3894]
[1680414142960,0.054,28466.0,28463.0,0.0887]
[1680414143651,0.004,28466.0,28463.0,0.0887]
[1680414143855,0.054,28466.0,28463.0,0.0887]
[1680414144045,0.3047,28466.0,28463.0,0.0887]
[1680414144265,0.004,28466.0,28463.0,0.0887]
[1680414144557,0.3547,28466.0,28463.0,0.0887]
[1680414145748,0.05,28465.0,28463.0,0.0887]
[1680414146461,0.05,28465.0,28463.0,0.0877]
[1680414146652,0.052,28465.0,28463.0,0.0877]
[1680414146856,0.1395,28465.0,28462.0,0.3885]
[1680414147152,0.1395,28465.0,28462.0,0.0878]
[1680414147967,0.1375,28465.0,28462.0,0.0878]
[1680414148150,0.1395,28465.0,28462.0,0.0878]
[1680414151177,0.0878,28463.0,28459.0,0.3887]
[1680414151367,0.05,28462.0,28459.0,0.3887]
[1680414151560,0.05,28462.0,28459.0,0.088]
[1680414151791,0.1378,28462.0,28458.0,0.0873]
[1680414151979,0.0878,28462.0,28459.0,0.05]
[1680414152163,0.0878,28462.0,28459.0,0.061]
[1680414152363,0.0878,28462.0,28459.0,0.011]
[1680414153360,0.0878,28462.0,28458.0,0.1043]
[1680414153760,0.0878,28462.0,28459.0,0.067]
[1680414154162,0.0878,28462.0,28458.0,0.1043]
[1680414154678,0.0878,28462.0,28458.0,0.0873]
[1680414154874,0.05,28461.0,28459.0,0.017]
[1680414155270,0.1378,28462.0,28458.0,0.1043]
[1680414156266,0.0878,28462.0,28459.0,0.024]
[1680414156472,0.0878,28462.0,28459.0,0.074]
[1680414156669,0.0878,28462.0,28458.0,0.1043]
[1680414157466,0.0878,28462.0,28459.0,0.017]
[1680414157678,0.0878,28462.0,28459.0,0.067]
[1680414157969,0.0878,28462.0,28458.0,0.1043]
[1680414158970,0.0878,28462.0,28459.0,0.017]
[1680414159364,0.0878,28462.0,28458.0,0.1043]
[1680414159764,0.0878,28462.0,28458.0,0.0873]
[1680414159966,0.0878,28462.0,28459.0,0.017]
[1680414160172,0.0878,28462.0,28459.0,0.067]
[1680414160383,0.0878,28462.0,28458.0,0.0873]
[1680414160572,0.0878,28462.0,28458.0,0.1043]
[1680414160876,0.05,28461.0,28458.0,0.1043]
[1680414161777,0.05,28461.0,28459.0,0.017]
[1680414161968,0.1378,28462.0,28458.0,0.1113]
[1680414162473,0.0878,28462.0,28458.0,0.1113]
[1680414163070,0.0878,28462.0,28458.0,0.1043]
[1680414166887,0.0878,28463.0,28459.0,0.0878]
[1680414167087,0.05,28462.0,28460.0,0.05]
[1680414167276,0.05,28462.0,28459.0,0.0878]
[1680414167977,0.05,28462.0,28460.0,0.017]
[1680414168178,0.1378,28463.0,28460.0,0.017]
[1680414168772,0.0878,28463.0,28460.0,0.3507]
[1680414169077,0.0878,28466.0,28462.0,0.0878]
[1680414169293,0.0878,28466.0,28463.0,0.05]
[1680414170377,0.0918,28466.0,28463.0,0.051]
[1680414170686,0.0918,28466.0,28463.0,0.001]
[1680414177392,0.07,28465.0,28464.0,0.0699]
[1680414179485,0.072,28465.0,28464.0,0.0699]
[1680414184789,0.002,28465.0,28464.0,0.1404]
[1680414184990,0.002,28465.0,28464.0,0.1904]
[1680414185299,0.002,28465.0,28464.0,0.1404]
[1680414186988,0.002,28465.0,28464.0,0.06989881]
[1680414188691,0.002,28465.0,28464.0,0.11989881]
[1680414190790,0.002,28465.0,28464.0,0.06989881]
[1680414191289,0.002,28465.0,28464.0,0.11989881]
[1680414192104,0.002,28465.0,28464.0,0.06989881]
[1680414192407,0.002,28465.0,28464.0,0.11989881]
[1680414192907,0.002,28465.0,28464.0,0.06989881]
[1680414195198,0.00177124,28465.0,28464.0,0.11989881]
[1680414195391,0.00177124,28465.0,28464.0,0.06989881]